[Event "GER-ch Youth U12M 2018"]
[Site "Willingen"]
[Date "2018.05.25"]
[Round "10"]
[White "Chassard, Cedric"]
[Black "Foerster-Yialamas, Lucas"]
[Result "1/2-1/2"]
[ECO "B92"]
[WhiteElo "1590"]
[BlackElo "1924"]
[Annotator "NA"]
[PlyCount "75"]
[EventDate "2018.05.19"]
[EventType "swiss"]
[EventCountry "GER"]
[SourceTitle "playchess.com"]
[Source "ChessBase"]
[SourceQuality "1"]
[TimeControl "40/4500+30:900+30"]

1. e4 {[%emt 0:00:00]} c5 {[%emt 0:00:00]} 2. Nf3 {[%emt 0:00:00]} d6 {[%emt 0:00:00]} 3. d4 {[%emt 0:00:00]} cxd4 {[%emt 0:00:03]} 4. Nxd4 {[%emt 0:00:00]} Nf6 {[%emt 0:00:03]} 5. Nc3 {[%emt 0:00:00]} a6 {[%emt 0:00:03]} 6. Be2 {[%emt 0:00:00]} e5 {[%emt 0:00:04]} 7. Nb3 {[%emt 0:00:02]} Be6 {[%emt 0:00:07]} 8. Bg5 {[%emt 0:00:59]} Be7 {[%emt 0:01:49]} 9. O-O {[%emt 0:00:25]} Nbd7 {[%emt 0:00:35]} 10. Kh1 {[%emt 0:03:57]} O-O {[%emt 0:01:00]} 11. f4 {[%emt 0:00:53]} exf4 {[%emt 0:00:28]} 12. Bxf4 {[%emt 0:02:14]} Ne5 {[%emt 0:00:06]} 13. Nd4 {[%emt 0:03:04]} Qc7 {[%emt 0:01:24]} 14. Nxe6 {[%emt 0:02:27]} fxe6 {[%emt 0:00:02]} 15. Bxe5 {[%emt 0:00:35]} dxe5 {[%emt 0:00:00]} 16. Qd3 {[%emt 0:04:42]} b5 {[%emt 0:01:44]} 17. Qh3 {[%emt 0:01:17]} Qc6 {[%emt 0:00:43]} 18. a3 {[%emt 0:02:04]} b4 {[%emt 0:02:24]} 19. axb4 {[%emt 0:02:25]} Bxb4 {[%emt 0:00:11]} 20. Na2 {[%emt 0:05:07]} Ba5 {[%emt 0:02:56]} 21. b4 {[%emt 0:04:04]} Bc7 {[%emt 0:00:36]} 22. Qc3 {[%emt 0:04:21]} Qxc3 {[%emt 0:07:12]} 23. Nxc3 {[%emt 0:00:08]} Bd6 {[%emt 0:00:24]} 24. b5 {[%emt 0:01:48]} Rac8 {[%emt 0:03:43]} 25. Rxa6 {[%emt 0:01:33]} Rxc3 {[%emt 0:02:15]} 26. Rxd6 {[%emt 0:00:09]} Rxc2 {[%emt 0:01:03]} 27. Bf3 {[%emt 0:00:40]} Nxe4 {[%emt 0:02:42]} 28. Rd7 {[%emt 0:00:56]} Nd2 {[%emt 0:01:10]} 29. Ra1 {[%emt 0:01:31]} Nxf3 {[%emt 0:09:14]} 30. gxf3 {[%emt 0:00:33]} Rb2 {[%emt 0:00:37]} 31. Raa7 {[%emt 0:03:43]} Rxf3 {[%emt 0:23:49]} 32. Rxg7+ {[%emt 0:01:02]} Kf8 {[%emt 0:00:02]} 33. Kg1 {[%emt 0:00:41]} e4 {[%emt 0:09:39]} 34. Rxh7 {[%emt 0:00:39]} Rb1+ {[%emt 0:00:50]} 35. Kg2 {[%emt 0:00:14]} Rb2+ {[%emt 0:00:10]} 36. Kg1 {[%emt 0:00:06]} Kg8 {[%emt 0:00:19]} 37. Rag7+ {[%emt 0:00:36]} Kf8 {[%emt 0:00:10]} 38. Ra7 1/2-1/2

[Event "GER-ch Youth U12M 2018"]
[Site "Willingen"]
[Date "2018.05.25"]
[Round "10"]
[White "Lehmann, Nils"]
[Black "Weidenhoefer, Max"]
[Result "1/2-1/2"]
[ECO "B18"]
[WhiteElo "1558"]
[BlackElo "1709"]
[Annotator "NA RC"]
[PlyCount "161"]
[EventDate "2018.05.19"]
[EventType "swiss"]
[EventCountry "GER"]
[SourceTitle "playchess.com"]
[Source "ChessBase"]
[SourceQuality "1"]
[TimeControl "40/4500+30:900+30"]

1. e4 {[%emt 0:00:00]} c6 {[%emt 0:00:03]} 2. d4 {[%emt 0:00:00]} d5 {[%emt 0:00:04]} 3. Nc3 {[%emt 0:00:00]} dxe4 {[%emt 0:00:05]} 4. Nxe4 {[%emt 0:00:00]} Bf5 {[%emt 0:00:05]} 5. Ng3 {[%emt 0:00:01]} Bg6 {[%emt 0:00:05]} 6. Nf3 {[%emt 0:00:06]} Nd7 {[%emt 0:00:18]} 7. Bc4 {[%emt 0:00:10]} e6 {[%emt 0:00:11]} 8. O-O {[%emt 0:00:07]} Ngf6 {[%emt 0:00:21]} 9. Re1 {[%emt 0:00:35]} Be7 {[%emt 0:01:00]} 10. Nh4 {[%emt 0:02:15]} O-O {[%emt 0:00:42]} 11. Nxg6 {[%emt 0:00:02]} hxg6 {[%emt 0:00:12]} 12. c3 {[%emt 0:00:21]} Nb6 {[%emt 0:02:44]} 13. Bb3 {[%emt 0:00:26]} Nbd5 {[%emt 0:02:10]} 14. Qf3 {[%emt 0:01:44]} Qc7 {[%emt 0:05:46]} 15. Ne4 {[%emt 0:00:24]} Nxe4 {[%emt 0:05:23]} 16. Rxe4 {[%emt 0:00:41]} Rfd8 {[%emt 0:07:13]} 17. g3 {[%emt 0:04:11]} Rd7 {[%emt 0:03:55]} 18. Kg2 {[%emt 0:08:31]} Rad8 {[%emt 0:02:54]} 19. h4 {[%emt 0:05:58]} Nf6 {[%emt 0:03:02]} 20. Re1 {[%emt 0:00:10]} c5 {[%emt 0:01:33]} 21. dxc5 {[%emt 0:01:24]} Bxc5 {[%emt 0:01:38]} 22. Bc2 {[%emt 0:00:43]} Qb6 {[%emt 0:03:37]} 23. Rh1 {[%emt 0:12:36]} Rd2 {[%emt 0:09:22]} 24. Bxd2 {[%emt 0:04:31]} Rxd2 {[%emt 0:00:15]} 25. Rhf1 {[%emt 0:03:28]} Rxc2 {[%emt 0:01:56]} 26. b3 {[%emt 0:02:45]} Nd5 {[%emt 0:05:29]} 27. b4 {[%emt 0:07:25]} Bd6 {[%emt 0:07:13]} 28. Rfc1 {[%emt 0:00:14]} Rxc1 {[%emt 0:01:50]} 29. Rxc1 {[%emt 0:00:09]} Qc6 {[%emt 0:03:49]} 30. a3 {[%emt 0:01:05]} Qc4 {[%emt 0:05:41]} 31. h5 {[%emt 0:06:17]} g5 {[%emt 0:02:39]} 32. h6 {[%emt 0:03:22]} gxh6 {[%emt 0:01:23]} 33. Qh5 {[%emt 0:01:00]} Kg7 {[%emt 0:00:18]} 34. Rh1 {[%emt 0:00:14]} Qe4+ {[%emt 0:00:09]} 35. Kf1 {[%emt 0:00:32]} Qg6 {[%emt 0:00:17]} 36. Qf3 {[%emt 0:00:28]} g4 {[%emt 0:00:55]} 37. Qd1 {[%emt 0:01:07]} Be7 {[%emt 0:06:28]} 38. c4 {[%emt 0:00:22]} Qe4 {[%emt 0:00:39]} 39. Kg1 {[%emt 0:02:42]} Qxc4 {[%emt 0:01:13]} 40. Qa4 {[%emt 0:02:00]} Qe2 {[%emt 0:16:44]} 41. Qxa7 {[%emt 0:27:59]} b6 {[%emt 0:00:00]} 42. Rh5 {[%emt 0:00:00]} Qe1+ {[%emt 0:00:00]} 43. Kg2 {[%emt 0:00:00]} Qe2 {[%emt 0:00:00]} 44. Kg1 {[%emt 0:00:00]} Nf6 {[%emt 0:00:00]} 45. Rh1 {[%emt 0:00:00]} Bd8 {[%emt 0:00:00]} 46. Qb8 {[%emt 0:00:00]} Ne4 {[%emt 0:00:49]} 47. Qf4 {[%emt 0:00:00]} Bg5 {[%emt 0:00:39]} 48. Qe5+ {[%emt 0:00:00]} Bf6 {[%emt 0:00:50]} 49. Qf4 {[%emt 0:00:00]} Bg5 {[%emt 0:00:55]} 50. Qe5+ {[%emt 0:00:00]} Kh7 {[%emt 0:00:09]} 51. Qd4 {[%emt 0:00:00]} Bd8 {[%emt 0:01:12]} 52. Rh2 {[%emt 0:05:24]} e5 {[%emt 0:00:09]} 53. Qe3 {[%emt 0:01:17]} Qxe3 {[%emt 0:00:09]} 54. fxe3 {[%emt 0:00:08]} Nxg3 {[%emt 0:00:06]} 55. Rd2 {[%emt 0:00:42]} Bg5 {[%emt 0:00:15]} 56. Kg2 {[%emt 0:00:58]} Ne4 {[%emt 0:00:31]} 57. Rd7 {[%emt 0:00:17]} Kg6 {[%emt 0:00:15]} 58. Rd3 {[%emt 0:00:35]} h5 {[%emt 0:00:17]} 59. a4 {[%emt 0:00:06]} h4 {[%emt 0:01:06]} 60. a5 {[%emt 0:00:21]} bxa5 {[%emt 0:00:17]} 61. bxa5 {[%emt 0:00:10]} Nc5 {[%emt 0:00:51]} 62. Rd5 {[%emt 0:00:29]} Bxe3 {[%emt 0:00:23]} 63. Rxe5 {[%emt 0:00:07]} h3+ {[%emt 0:00:12]} 64. Kf1 {[%emt 0:00:21]} Bf2 {[%emt 0:01:13]} 65. a6 {[%emt 0:00:26]} Nxa6 {[%emt 0:00:15]} 66. Kxf2 {[%emt 0:00:05]} Nc7 {[%emt 0:00:39]} 67. Kg3 {[%emt 0:00:43]} f5 {[%emt 0:00:10]} 68. Kf4 {[%emt 0:00:58]} h2 {[%emt 0:02:27]} 69. Re1 {[%emt 0:00:10]} Nd5+ {[%emt 0:00:13]} 70. Kg3 {[%emt 0:00:23]} Kg5 {[%emt 0:00:26]} 71. Kxh2 {[%emt 0:00:13]} Nf6 {[%emt 0:00:15]} 72. Re6 {[%emt 0:02:03]} Ne4 {[%emt 0:00:23]} 73. Kg2 {[%emt 0:01:18]} Kf4 {[%emt 0:00:21]} 74. Re8 {[%emt 0:00:44]} Ke3 {[%emt 0:00:21]} 75. Ra8 {[%emt 0:00:42]} f4 {[%emt 0:01:04]} 76. Ra3+ {[%emt 0:00:06]} Ke2 {[%emt 0:00:10]} 77. Ra2+ {[%emt 0:00:26]} Nd2 {[%emt 0:00:10]} 78. Rb2 {[%emt 0:00:30]} Ke1 {[%emt 0:01:43]} 79. Ra2 {[%emt 0:00:42]} f3+ {[%emt 0:00:59]} 80. Kg3 {[%emt 0:00:40]} f2 {[%emt 0:00:39]} 81. Ra1+ {[%emt 0:00:27]} 1/2-1/2